Cogmind - Beta 11.1 @@@ ROGUE MODE // 2022.10.15 @ 17:00:05 Player: Beepinex Result: Destroyed by G-34 Mercenary with Small Laser Performance ------------- Evolutions (0) 0 Regions Visited (1) 200 Robots Destroyed (11) 55 Value Destroyed (166) 166 Prototype IDs (0) 0 Alien Tech Used (0) 0 Bonus (0) 0 TOTAL SCORE: 421 Bonus ------- None Cogmind --------- Core Integrity 0/250 Matter 271/300 Energy 100/100 System Corruption 1% Temperature Cool (6) Movement Core (100) Ox1 Location -10/Materials Parts ------- > --- POWER (1) -------- (None) > --- PROPULSION (2) --- (None) > --- UTILITY (2) ------ Small Storage Unit > --- WEAPON (2) ------- (None) > --- INVENTORY (8) ---- Cooling System Cooling System Core Shielding Light Assault Rifle Peak State ------------ > --- POWER ------------ Ion Engine > --- PROPULSION ------- Wheel Compact Wheel > --- UTILITY ---------- Small Storage Unit Core Shielding > --- WEAPON ----------- EM Pulse Gun Light Assault Rifle > --- INVENTORY -------- Ion Engine Light Assault Rifle [Rating: 7] Favorites ----------- Power Ion Engine Engine Ion Engine Propulsion Compact Wheel Wheel Compact Wheel Utility Small Storage Unit Device Seismic Detector Storage Small Storage Unit Protection Core Shielding Weapon Light Assault Rifle Energy Gun EM Pulse Gun Ballistic Gun Light Assault Rifle Build | -11 -10 ------- Run | Scr Mat Slots Evolved . | . . Power . | . . Propulsion . | . . Utility . | . . Weapon . | . . Parts Attached 11 | 6 5 Power 3 | 1 2 Engine 3 | 1 2 Core . | . . Reactor . | . . Propulsion 2 | 2 . Treads . | . . Leg . | . . Wheel 2 | 2 . Hover . | . . Flight . | . . Utility 3 | 1 2 Device 1 | . 1 Storage 1 | 1 . Processor . | . . Hackware . | . . Protection 1 | . 1 Artifact . | . . Weapon 3 | 2 1 Energy Gun 2 | 1 1 Energy Cannon . | . . Ballistic Gun 1 | 1 . Ballistic Cannon . | . . Launcher . | . . Special Weapon . | . . Impact Weapon . | . . Slashing Weapon . | . . Piercing Weapon . | . . Special Melee Weapon . | . . Unidentified Prototypes . | . . Corrupted Parts 1 | . 1 System Corruption 1 | . 1 Parts Lost 8 | . 8 Power 2 | . 2 Propulsion 2 | . 2 Utility 1 | . 1 Weapon 3 | . 3 Highest Loss Streak 4 | . 4 To Critical Strikes . | . . Average Slot Usage (%) 88 | . 88 Engine 12 | . 12 Wheel 22 | . 22 Device 3 | . 3 Storage 14 | . 14 Protection 8 | . 8 Energy Gun 12 | . 12 Ballistic Gun 12 | . 12 Naked Turns . | . . Heaviest Build 14 | 13 14 Greatest Support 26 | 26 26 Greatest Overweight (x) 4 | . 4 Average Overweight (x) . | . . Largest Inventory Capacity 8 | 8 8 Average Capacity 7 | 7 8 Most Carried 6 | 3 6 Average Carried 3 | 1 4 Final Capacity 8 | 8 8 Final Carried 4 | 2 4 Class Distribution -------------------- 100% | Mutant Dominant Class ---------------- Mutant | -10/Materials Resources | -11 -10 ----------- Run | Scr Mat Matter Collected 246 | 108 138 Remotely . | . . Salvage Created 366 | 194 172 Parts 22 | 13 9 Haulers Intercepted . | . . Recyclers Shooed . | . . Parts Field Recycled . | . . Retrieved Matter . | . . Parts Self-Destructed . | . . Prevented . | . . Kills | -11 -10 ------- Run | Scr Mat Combat Hostiles Destroyed 3 | . 3 Guns 2 | . 2 AOE 1 | . 1 Classes Destroyed 4 | 2 2 Tunneler 6 | 5 1 Recycler 1 | 1 . Watcher 1 | . 1 Grunt 3 | . 3 Best Kill Streak 6 | 6 2 Combat Bots Only 1 | . 1 Max Kills in Single Turn 1 | 1 1 Gunslinging . | . . Exploded 1 | . 1 Melee . | . . Uniques/NPCs Destroyed . | . . Combat | -11 -10 -------- Run | Scr Mat Damage Taken 773 | 18 755 Core 252 | . 252 Absorbed by Shields . | . . Redirected to Shielding 6 | . 6 Core Remaining (%) 100 | 100 . Volleys Fired 62 | 14 48 Largest 2 | 1 2 Hottest 60 | 40 60 Shots Fired 67 | 14 53 Gun 67 | 14 53 Cannon . | . . Launcher . | . . Special . | . . Kinetic 5 | . 5 Thermal 5 | . 5 Explosive . | . . Electromagnetic 57 | 14 43 Robot Hit Streak 9 | 9 5 Robot Miss Streak 4 | 1 4 Penetration Max . | . . Secondary Targets . | . . Shots Hit Robots 44 | 12 32 Core Hits 16 | 7 9 Critical Kills . | . . Critical Parts Destroyed . | . . Critical Strikes . | . . Melee Attacks . | . . Impact . | . . Slashing . | . . Piercing . | . . Sneak Attacks . | . . Combat Hostiles . | . . Follow-up Attacks . | . . Damage Inflicted 815 | 205 610 Guns 637 | 164 473 Cannons . | . . Explosions 178 | 41 137 Melee . | . . Ramming . | . . Kinetic 45 | . 45 Thermal 213 | 41 172 Explosive . | . . Electromagnetic 557 | 164 393 Impact . | . . Slashing . | . . Piercing . | . . Highest Corruption 1 | . 1 Average Corruption 1 | . 1 Corruption Purged . | . . Corruption Blocked . | . . Overload Shots . | . . Overflow Damage 64 | . 64 Projectiles . | . . Explosions 64 | . 64 Melee . | . . Knockbacks . | . . Impact . | . . Kinetic . | . . Secondary . | . . Self-Inflicted Damage 72 | 18 54 Shots 2 | 1 1 Rammed . | . . Targets Rammed . | . . Kicked . | . . Crushed . | . . Highest Temperature 59 | 32 59 Average Temperature 24 | 22 25 Received Heat Transfer 408 | . 408 Siege Activations . | . . Robots Corrupted . | . . Combat Hostiles . | . . Parts Fried 2 | 1 1 Impact Corruptions . | . . Robots Melted . | . . Combat Hostiles . | . . Parts Melted . | . . Heat Transferred 175 | . 175 Parts Sabotaged . | . . Parts Stolen . | . . Parts Stripped . | . . Power Chain Reactions 4 | 1 3 Missiles Intercepted . | . . Alert | -11 -10 ------- Run | Scr Mat Peak Influence 189 | 30 189 Initial 19 | . 19 Average 63 | 15 75 Maximum Alert Level . | . . Low Security (%) 100 | 100 100 Level 1 . | . . Level 2 . | . . Level 3 . | . . Level 4 . | . . Level 5 . | . . High Security . | . . Max Security . | . . Squads Dispatched 2 | . 2 Investigation . | . . Extermination . | . . Reinforcement 2 | . 2 Assault . | . . Garrison . | . . Intercept . | . . Searches Triggered . | . . Construction Impeded . | . . Haulers Reinforced . | . . Active Scanning Responses . | . . Cargo Convoy Interrupts . | . . Stealth | -11 -10 --------- Run | Scr Mat Distress Signals 1 | . 1 Communications Jammed . | . . Distress Signals . | . . Times Spotted 14 | . 14 Peak Tracking Total 4 | . 4 Tactical Retreats 1 | . 1 Traps | -11 -10 ------- Run | Scr Mat Traps Triggered . | . . Indirectly . | . . Trap Hack Attempts . | . . Triggered . | . . Disarmed . | . . Reprogrammed . | . . Reused . | . . Traps Extracted . | . . Installed . | . . Triggered . | . . Machines | -11 -10 ---------- Run | Scr Mat Machines Disabled . | . . Max in Single Turn . | . . Machines Sabotaged . | . . Garrisons Compromised . | . . Overloaded Fab Kills . | . . Hacking | -11 -10 --------- Run | Scr Mat Machines Accessed . | . . Terminals . | . . Fabricators . | . . Repair Stations . | . . Recycling Units . | . . Scanalyzers . | . . Garrison Access . | . . Total Hacks . | . . Successful . | . . Failed . | . . Catastrophic . | . . Database Lockouts . | . . Manual . | . . Terminals . | . . Fabricators . | . . Repair Stations . | . . Recycling Units . | . . Scanalyzers . | . . Garrison Access . | . . Terminal Hacks . | . . Fabricator Hacks . | . . Repair Station Hacks . | . . Recycling Unit Hacks . | . . Scanalyzer . | . . Garrison Access Hacks . | . . Unauthorized Hacks . | . . Terminals . | . . Fabricators . | . . Repair Stations . | . . Recycling Units . | . . Scanalyzers . | . . Garrison Access . | . . Data Cores Recovered . | . . Used . | . . Hacking Detections . | . . Full Trace Events . | . . Feedback Events . | . . Feedback Blocked . | . . Robot Schematics Acquired . | . . Robots Built . | . . Authchips . | . . Time . | . . Total Robot Build Rating . | . . Part Schematics Acquired . | . . Parts Built . | . . Authchips . | . . Time . | . . Total Part Build Rating . | . . Parts Repaired . | . . Time . | . . Parts Recycled . | . . Recycled Matter . | . . Retrieved Matter . | . . Retrieved Components . | . . Parts Scanalyzed . | . . Part Schematics Acquired . | . . Parts Damaged . | . . Bothacking | -11 -10 ------------ Run | Scr Mat Used RIF Installer . | . . Robots Hacked . | . . Non-combat . | . . Combat . | . . Robot Hacks Applied . | . . Relay Couplers Released . | . . Fabnet Peak Effective % . | . . Robots Rewired . | . . Allies Hacked . | . . Hacks Repelled . | . . Allies | -11 -10 -------- Run | Scr Mat Total Allies . | . . Largest Group . | . . Highest-Rated Group . | . . Highest-Rated Ally . | . . Total Orders . | . . Ally Attacks . | . . Total Damage . | . . Kills . | . . Allies Corrupted . | . . Allies Melted . | . . Intel | -11 -10 ------- Run | Scr Mat Robot Analysis Total . | . . Derelict Logs Recovered . | . . Drone Launches . | . . Drone Recoveries . | . . Exploration | -11 -10 ------------- Run | Scr Mat Turns Passed 605 | 116 489 Spaces Moved 341 | 36 305 Core 14 | 7 7 Treads . | . . Legs . | . . Wheels 327 | 29 298 Hover . | . . Flight . | . . Fastest Speed 50 | 50 90 Average Speed 92 | 82 93 Slowest Speed 250 | 90 250 Overloaded Moves . | . . Propulsion Burnouts . | . . Robots Hopped . | . . Cave-ins Triggered . | . . Exploration Rate (%) 21 | 5 38 Regions Visited 1 Branch Regions . Pre-discovered Areas . | . . Known Exits Taken . | . . Unknown Exits Taken 1 | 1 . Scrap Searched . | . . Spaces Dug . | . . Terrain Destroyed 11 | . 11 Melee . | . . Projectile . | . . AOE 11 | . 11 Terrain Rammed . | . . Walls Destroyed . | . . Machines Disabled . | . . Actions | -11 -10 --------- Run | Scr Mat Total 564 | 108 456 Wait 136 | 45 91 Move 340 | 35 305 Hop . | . . Pick Up 14 | 8 6 Fast Attach . | . . Attach 9 | 6 3 Detach . | . . Swap 2 | . 2 Drop 1 | . 1 Fire 62 | 14 48 Melee . | . . Ram . | . . Kick . | . . Crush . | . . Escape Stasis . | . . Rewire . | . . Trap . | . . Miscellaneous . | . . Route ------- -11/Scrapyard -10/Materials History --------- Turn | Location | Event 5 | -11/Scrapyard | Discovered new exit (range 15) 117 | -11/Scrapyard | Entered Materials 302 | -10/Materials | Build established: Mutant 549 | -10/Materials | Lost 4 parts (1p2n1w) 571 | -10/Materials | Core integrity fell below 50% 595 | -10/Materials | Lost 4 parts (1p1u2w) 599 | -10/Materials | Core integrity fell below 20% 606 | -10/Materials | Destroyed by G-34 Mercenary with Small Laser Last Messages --------------- 00515_ Wheel destroyed. 00517_ U-05 Engineer lays Concrete. 00518_ Com. Wheel destroyed. 00518_ U-05 Engineer lays Concrete. 00520_ U-05 Engineer builds a Wall. 00522_ ALERT: Hostiles spotted, dispatching reinforcements to Terminal M008. 00524_ G-47 Trooper destroyed. 00525_ U-05 Engineer builds a Door. 00526_ U-05 Engineer builds a Wall. 00530_ U-05 Engineer lays Concrete. 00543_ K-01 Serf collects debris. 00547_ R-06 Scavenger collects Particle Gun. 00548_ K-01 Serf collects debris. 00550_ Ion Engine destroyed. 00554_ Seismic Detector destroyed. 00556_ K-01 Serf collects debris. 00560_ Lgt. Assault Rifle destroyed. 00564_ Sml. Laser destroyed. 00579_ K-01 Serf cleans the Purification Channel. Map ----- +----------------------------------------------------+ | ?????????????????????????????????????????????????? | | ?????????????????????????????????????????????????? | | ?????????????????????????????????????????????????? | | ?????????????????????????????????????????????????? | | ?????????????????????????????????????????????????? | | ?????????????????????????????????????????????????? | | ?????????????????????????????????????????????????? | | ?????????????????????????????????????????????????? | | ?????????????????????????????????????????????????? | | ?????????????????????????????????????????????????? | | ?????????????????????????????????????????????????? | | #######??????????????????????????????????????????? | | #??????????????????????????????????????????? | | #??????????????????????????????????????????? | | " #???????????#??????????????????????????????? | | " #???????????# ?????????????????????????????? | | #######???????????? ????????????????????????????? | | #######????????????? ######?????????????????????? | | #??????????????? ?????????????????????? | | #???????????????###%##?????????????????????? | | #???????????????# #+######?????????????????? | | #????????????????## #?????????????????? | | ! #????????????????## gr [ #?????????????????? | | / #?????????????????# " #?????????????????? | | #????????##########t""" #?????????????????? | | #????????# #@"" #?????????????????? | | #????????# ! + """o #?????????????????? | | ################ # "" #?????????????????? | | """ # """ #?????????????????? | | """ #k""" #?????????????????? | | = """ # """k #?????????????????? | | ## ######## # " #?????????????????? | | ?# #??????# =# #?????????????????? | | ?# !==||#??????# # #?????????????????? | | ?# !==||#??????# "Y" ###+#####????????????????? | | ?########??????# """ #????????????????? | | #######????????# #????????????????? | | #????????# #????????????????? | | #????????#### # #????????????????? | | #???????????#! !# #????????????????? | | ### #???????????#! !# #????????????????? | | # #???????????##!!!!## #????????????????? | | # #????????????####### #????????????????? | | # #??????????????????# #????????????????? | | + #??????????????????# #????????????????? | | # #??????????????????# #????????????????? | | # #??????????????????# #????????????????? | | ### #??????????????????? #????????????????? | | #??????????????????? #????????????????? | | ### #??????????????????? ??????????????????? | +----------------------------------------------------+ Best States ------------- Heat Dissipation 25 Energy Generation 10 Energy Capacity 250 Matter Stores 271 Matter Capacity 300 Sight Range 16 Terrain Scan Density 10 Core Shielding 20 Evasion (%) 42 Item Schematics ----------------- None Robot Schematics ------------------ None Fabricated ------------ Nothing Alien Tech Used ----------------- None Achievements -------------- None Challenges ------------ None Game ------ Seed ActiveBiometalRail Manual? 0 Play Time 00:08:42 Cumulative 20.7 hours Start 2022.10.15 @ 16:50:38 End 2022.10.15 @ 17:00:05 Sessions 1 Manual Loads 0 Difficulty Rogue Special Mode None Game No. 42 Rogue 42 Adventurer 0 Explorer 0 Win Type - Total 0 Types 0/0/0/0/0/0/0/0/0 Lore% 18 Gallery% 20 Achievement% 22 Wizard Run 0 Options --------- ASCII 0 Keyboard 0 Movement Numpad Keybinds 0 Fullscreen 2 Font 18/TerminusBold Map View 76x50 Tactical HUD 1 Map Filters NONE Filters NONE Steam 1 RUN: e590f82c-21d1-4edb-982c-1021b8c40721